fUST/lending_fUST_20240720
["ID","MTS","AMOUNT","RATE_DAILY","PERIOD"]
[332729468,1721490644820,-500.0,0.00014801,2]
[332729469,1721490644830,-500.0,0.00014801,2]
[332729470,1721490644839,-500.0,0.00014801,2]
[332729471,1721490644849,-562.25,0.00014801,2]
[332729472,1721490644858,-973.63,0.00014801,2]
[332729473,1721490644869,-1950.43,0.00014801,2]
[332729474,1721490644879,-2305.47,0.00014801,2]
[332729475,1721490644889,-503.42,0.00014801,2]
[332729476,1721490644899,-503.42,0.00014801,2]
[332729477,1721490644908,-503.42,0.00014801,2]
[332729478,1721490644918,-503.42,0.00014801,2]
[332729479,1721490644927,-503.52640636,0.00014801,2]
[332729480,1721490644936,-1000.0,0.00014805,2]
[332729481,1721490644945,-500.0,0.00014812,2]
[332729482,1721490644955,-261.30972445,0.00014812,2]
[332729483,1721490644964,-500.0,0.00014812,2]
[332729484,1721490644974,-500.0,0.00014812,2]
[332729485,1721490644984,-500.0,0.00014812,2]
[332729486,1721490644993,-500.0,0.00014812,2]
[332729487,1721490645004,-256.28354357,0.00014812,2]
[332729488,1721490645013,-500.0,0.00014812,2]
[332729489,1721490645023,-500.0,0.00014812,2]
[332729490,1721490645034,-500.0,0.00014812,2]
[332729491,1721490645044,-500.0,0.00014812,2]
[332729492,1721490645053,-500.0,0.00014812,2]
[332729493,1721490645063,-500.0,0.00014812,2]
[332729494,1721490645073,-500.0,0.00014812,2]
[332729495,1721490645083,-722.84,0.00014812,2]
[332729496,1721490645092,-996.68,0.00014812,2]
[332729497,1721490645102,-500.0,0.00014812,2]
[332729498,1721490645111,-500.0,0.00014812,2]
[332729499,1721490645121,-506.08089395,0.00014812,2]
[332729500,1721490645130,-500.0,0.00014812,2]
[332729501,1721490645140,-500.0,0.00014812,2]
[332729502,1721490645149,-608.35,0.00014812,2]
[332729503,1721490645159,-500.0,0.00014812,2]
[332729504,1721490645168,-500.0,0.00014812,2]
[332729505,1721490645178,-500.0,0.00014812,2]
[332729506,1721490645188,-500.0,0.00014812,2]
[332729507,1721490645198,-500.0,0.00014812,2]
[332729508,1721490645208,-507.77956758,0.00014812,2]
[332729509,1721490645217,-500.0,0.00014812,2]
[332729510,1721490645227,-482.34424015,0.00014812,2]
[332729511,1721490645236,-500.0,0.00014812,2]
[332729512,1721490645245,-554.99193017,0.00014812,2]
[332729513,1721490645255,-2395.97,0.00014812,2]
[332729514,1721490645264,-500.0,0.00014812,2]
[332729515,1721490645273,-500.0,0.00014812,2]
[332729516,1721490645282,-641.96,0.00014812,2]
[332729517,1721490645291,-500.0,0.00014812,2]
[332729518,1721490645300,-500.0,0.00014812,2]
[332729519,1721490645309,-500.0,0.00014812,2]
[332729520,1721490645319,-169.45526111,0.00014812,2]
[332729521,1721490645328,-500.0,0.00014812,2]
[332729522,1721490645338,-500.0,0.00014812,2]
[332729523,1721490645348,-500.0,0.00014812,2]
[332729524,1721490645357,-500.0,0.00014812,2]
[332729525,1721490645366,-500.0,0.00014812,2]
[332729527,1721490645376,-500.0,0.00014812,2]
[332729529,1721490645386,-500.0,0.00014812,2]
[332729530,1721490645397,-820.83,0.00014812,2]
[332729531,1721490645407,-582.4,0.00014812,2]
[332729532,1721490645418,-500.0,0.00014812,2]
[332729533,1721490645427,-500.0,0.00014812,2]
[332729534,1721490645437,-500.0,0.00014812,2]
[332729535,1721490645446,-500.0,0.00014812,2]
[332729536,1721490645455,-500.0,0.00014812,2]
[332729537,1721490645464,-500.0,0.00014812,2]
[332729538,1721490645474,-1189.82,0.00014812,2]
[332729539,1721490645483,-500.0,0.00014812,2]
[332729540,1721490645492,-500.0,0.00014812,2]
[332729541,1721490645502,-718.68,0.00014812,2]
[332729542,1721490645511,-500.0,0.00014812,2]
[332729543,1721490645522,-500.0,0.00014812,2]
[332729545,1721490645532,-556.66494551,0.00014812,2]
[332729548,1721490645542,-500.0,0.00014812,2]
[332729550,1721490645552,-500.0,0.00014812,2]
[332729552,1721490645561,-500.0,0.00014812,2]
[332729555,1721490645572,-500.4941119,0.00014812,2]
[332729556,1721490645581,-500.0,0.00014812,2]
[332729558,1721490645591,-500.0,0.00014812,2]
[332729561,1721490645600,-510.37104917,0.00014812,2]
[332729563,1721490645609,-500.0,0.00014812,2]
[332729565,1721490645619,-500.0,0.00014812,2]
[332729567,1721490645628,-500.0,0.00014812,2]
[332729569,1721490645638,-500.0,0.00014812,2]
[332729571,1721490645647,-500.0,0.00014812,2]
[332729574,1721490645657,-1068.47,0.00014812,2]
[332729576,1721490645667,-500.0,0.00014812,2]
[332729579,1721490645676,-503.14598103,0.00014812,2]
[332729582,1721490645687,-1131.22,0.00014812,2]
[332729585,1721490645697,-500.0,0.00014812,2]
[332729587,1721490645706,-500.0,0.00014812,2]
[332729590,1721490645716,-2897.29,0.00014812,2]
[332729592,1721490645726,-500.0,0.00014812,2]
[332729594,1721490645735,-500.0,0.00014812,2]
[332729598,1721490645744,-503.70346198,0.00014812,2]
[332729599,1721490645753,-499.97734961,0.00014812,2]
[332729601,1721490645763,-398.38256931,0.00014812,2]
[332729603,1721490645772,-500.0,0.00014812,2]
[332729606,1721490645781,-500.0,0.00014812,2]
[332729608,1721490645795,-500.0,0.00014812,2]
[332729610,1721490645804,-501.25801672,0.00014812,2]
[332729612,1721490645813,-500.0,0.00014812,2]
[332729613,1721490645822,-605.36,0.00014812,2]
[332729614,1721490645832,-762.42,0.00014812,2]
[332729615,1721490645842,-1585.46,0.00014812,2]
[332729616,1721490645851,-710.94,0.00014812,2]
[332729617,1721490645860,-500.0,0.00014812,2]
[332729618,1721490645871,-501.6,0.00014812,2]
[332729619,1721490645881,-500.0,0.00014812,2]
[332729620,1721490645890,-506.666072,0.00014812,2]
[332729621,1721490645900,-465.25885834,0.00014812,2]
[332729622,1721490645909,-500.0,0.00014812,2]
[332729623,1721490645918,-502.06952761,0.00014812,2]
[332729624,1721490645928,-500.0,0.00014812,2]
[332729625,1721490645938,-500.0,0.00014812,2]
[332729627,1721490645949,-518.04290527,0.00014812,2]
[332729629,1721490645960,-514.86963877,0.00014812,2]
[332729631,1721490645969,-500.0,0.00014812,2]
[332729633,1721490645978,-500.0,0.00014812,2]
[332729635,1721490645988,-500.0,0.00014812,2]
[332729637,1721490645998,-508.09294628,0.00014812,2]
[332729641,1721490646020,-500.0,0.00014812,2]
[332729642,1721490646029,-500.0,0.00014812,2]
[332729643,1721490646051,-984.39,0.00014812,2]
[332729644,1721490646061,-501.15558744,0.00014812,2]
[332729646,1721490646070,-500.0,0.00014812,2]
[332729647,1721490646080,-501.77387035,0.00014812,2]
[332729648,1721490646089,-500.0,0.00014812,2]
[332729649,1721490646099,-994.69,0.00014812,2]
[332729650,1721490646108,-500.0,0.00014812,2]
[332729651,1721490646118,-500.0,0.00014812,2]
[332729652,1721490646127,-500.0,0.00014812,2]
[332729653,1721490646136,-500.0,0.00014812,2]
[332729654,1721490646145,-469.18571943,0.00014812,2]
[332729655,1721490646154,-737.79,0.00014812,2]
[332729656,1721490646164,-500.0,0.00014812,2]
[332729657,1721490646173,-624.01,0.00014812,2]
[332729658,1721490646182,-500.0,0.00014812,2]
[332729659,1721490646191,-500.0,0.00014812,2]
[332729660,1721490646201,-5804.0809621,0.0001482,2]
[332729661,1721490646211,-500.0,0.00014833,2]
[332729662,1721490646220,-542.0321779,0.00014833,2]
[332729663,1721490646230,-553.59452076,0.00014833,2]
[332729664,1721490646240,-243.27925045,0.00014833,2]
[332729665,1721490646249,-500.0,0.00014833,2]
[332729666,1721490646259,-505.04670102,0.00014833,2]
[332729667,1721490646268,-500.0,0.00014833,2]
[332729668,1721490646278,-2103.62,0.00014853,2]
[332729669,1721490646287,-299.49942414,0.000149,2]
[332729670,1721490646297,-183.46642179,0.000149,2]
[332729671,1721490646307,-500.0,0.0001494,2]
[332729672,1721490646316,-500.0,0.0001494,2]
[332729673,1721490646326,-500.0,0.0001494,2]
[332729674,1721490646335,-500.0,0.0001494,2]
[332729675,1721490646344,-500.0,0.0001494,2]
[332729676,1721490646353,-500.0,0.0001494,2]
[332729677,1721490646362,-989.02,0.0001494,2]
[332729678,1721490646371,-630.86,0.0001494,2]
[332729679,1721490646380,-500.0,0.0001494,2]
[332729680,1721490646390,-500.0,0.0001494,2]
[332729681,1721490646399,-545.78111125,0.0001494,2]
[332729682,1721490646409,-500.0,0.0001494,2]
[332729683,1721490646419,-828.19,0.0001494,2]
[332729684,1721490646428,-1071.23,0.0001494,2]
[332729685,1721490646437,-500.0,0.0001494,2]
[332729686,1721490646447,-500.0,0.0001494,2]
[332729687,1721490646456,-500.0,0.0001494,2]
[332729688,1721490646465,-703.44,0.0001494,2]
[332729689,1721490646475,-624.25,0.0001494,2]
[332729690,1721490646484,-313.35768215,0.0001494,2]
[332729691,1721490646493,-500.0,0.0001494,2]
[332729692,1721490646504,-500.0,0.0001494,2]
[332729693,1721490646513,-500.0,0.0001494,2]
[332729694,1721490646523,-526.52,0.0001494,2]
[332729695,1721490646533,-500.0,0.0001494,2]
[332729696,1721490646542,-500.0,0.0001494,2]
[332729697,1721490646552,-1214.35,0.0001494,2]
[332729698,1721490646562,-470.93359713,0.0001494,2]
[332729699,1721490646571,-500.0,0.0001494,2]
[332729700,1721490646581,-281.9230277,0.0001494,2]
[332729701,1721490646591,-169.08451912,0.0001494,2]
[332729702,1721490646600,-500.0,0.0001494,2]
[332729703,1721490646611,-737.48,0.0001494,2]
[332729704,1721490646621,-500.0,0.0001494,2]
[332729705,1721490646630,-500.0,0.0001494,2]
[332729706,1721490646640,-500.0,0.0001494,2]
[332729707,1721490646650,-150.0,0.0001494,2]
[332729708,1721490646659,-500.0,0.0001494,2]
[332729709,1721490646668,-500.0,0.0001494,2]
[332729710,1721490646678,-506.54,0.0001494,2]
[332729711,1721490646688,-551.98,0.0001494,2]
[332729712,1721490646698,-500.0,0.0001494,2]
[332729713,1721490646707,-500.0,0.0001494,2]
[332729714,1721490646716,-500.0,0.0001494,2]
[332729715,1721490646726,-596.4,0.0001495,2]
[332729716,1721490646735,-500.0,0.0001495,2]
[332729717,1721490646744,-588.56,0.0001495,2]
[332729719,1721490646754,-1336.55,0.0001495,2]
[332729720,1721490646763,-564.06,0.0001495,2]
[332729721,1721490646772,-781.31,0.0001495,2]
[332729722,1721490646782,-3134.46,0.0001495,2]
[332729723,1721490646795,-960.96,0.0001495,2]
[332729724,1721490646804,-738.78,0.0001495,2]
[332729725,1721490646814,-9920.47,0.0001495,2]
[332729726,1721490646823,-1954.12,0.0001495,2]
[332729728,1721490646832,-3918.54,0.0001495,2]
[332729730,1721490646842,-3036.74,0.0001495,2]
[332729731,1721490646851,-3238.59,0.0001495,2]
[332729732,1721490646860,-2305.92,0.0001495,2]
[332729733,1721490646871,-5210.73,0.0001495,2]
[332729734,1721490646880,-13029.34,0.0001495,2]
[332729735,1721490646889,-6147.63,0.0001495,2]
[332729736,1721490646899,-2384.71,0.0001495,2]
[332729737,1721490646908,-3092.34,0.0001495,2]
[332729738,1721490646917,-8339.41,0.0001495,2]
[332729739,1721490646926,-3619.84,0.0001495,2]
[332729740,1721490646936,-500.0,0.0001495,2]
[332729741,1721490646946,-1326.31,0.0001495,2]
[332729742,1721490646956,-856.42,0.0001495,2]
[332729743,1721490646965,-1365.63,0.0001495,2]
[332729744,1721490646974,-1323.73,0.0001495,2]
[332729745,1721490646984,-500.0,0.0001495,2]
[332729746,1721490646993,-500.0,0.0001495,2]
[332729747,1721490647002,-1612.69,0.0001495,2]
[332729748,1721490647011,-500.0,0.0001495,2]
[332729749,1721490647020,-500.0,0.0001495,2]
[332729750,1721490647029,-503.08165892,0.0001495,2]
[332729751,1721490647038,-3171.01,0.0001495,2]
[332729752,1721490647047,-2380.43,0.0001495,2]
[332729753,1721490647056,-500.0,0.0001495,2]
[332729754,1721490647066,-535.32,0.0001495,2]
[332729755,1721490647075,-500.0,0.0001495,2]
[332729756,1721490647084,-816.87,0.00014951,2]
[332729757,1721490647094,-500.0,0.00014951,2]
[332729758,1721490647103,-644.01,0.00014951,2]
[332729759,1721490647113,-1109.33,0.00014951,2]
[332729760,1721490647122,-764.62,0.00014951,2]
[332729761,1721490647131,-589.68,0.00014951,2]
[332729762,1721490647140,-500.0,0.00014951,2]
[332729763,1721490647149,-500.0,0.00014951,2]
[332729764,1721490647158,-500.0,0.00014951,2]
[332729765,1721490647167,-2258.62,0.00014951,2]
[332729766,1721490647176,-2208.94,0.00014951,2]
[332729767,1721490647185,-500.0,0.00014951,2]
[332729768,1721490647194,-551.34285931,0.00014951,2]
[332729769,1721490647205,-1676.12,0.00014951,2]
[332729770,1721490647215,-3262.98,0.00014951,2]
[332729771,1721490647224,-2228.19,0.00014951,2]
[332729772,1721490647233,-2706.61,0.00014951,2]
[332729773,1721490647242,-1270.16,0.00014951,2]
[332729774,1721490647251,-500.0,0.00014951,2]
[332729775,1721490647260,-642.53,0.00014951,2]
[332729776,1721490647269,-802.79,0.00014951,2]
[332729777,1721490647278,-500.0,0.00014951,2]
[332729778,1721490647287,-709.79,0.00014951,2]
[332729779,1721490647299,-219.41559619,0.00014951,2]
[332729780,1721490647311,-601.52472544,0.00014951,2]
[332729781,1721490647321,-21939.8,0.00014951,2]
[332729782,1721490647330,-500.0,0.00014951,2]
[332729783,1721490647342,-680.05,0.00014951,2]
[332729784,1721490647353,-500.0,0.00014951,2]
[332729785,1721490647363,-3547.71,0.00014951,2]
[332729786,1721490647375,-3668.77,0.00014951,2]
[332729787,1721490647386,-729.38,0.00014951,2]
[332729788,1721490647397,-500.0,0.00014951,2]
[332729789,1721490647407,-520.92944104,0.00014951,2]
[332729790,1721490647418,-699.13,0.00014951,2]
[332729791,1721490647429,-1769.08,0.00014951,2]
[332729792,1721490647440,-500.0,0.00014951,2]
[332729793,1721490647453,-500.0,0.00014951,2]
[332729794,1721490647463,-630.75,0.00014951,2]
[332729795,1721490647473,-866.94,0.00014951,2]
[332729796,1721490647486,-500.0,0.00014951,2]
[332729797,1721490647495,-2342.31,0.00014951,2]
[332729798,1721490647505,-500.0,0.00014951,2]
[332729799,1721490647514,-10408.57,0.00014951,2]
[332729800,1721490647523,-503.63206823,0.00014953,2]
[332729801,1721490647533,-1115.51,0.00014953,2]
[332729802,1721490647542,-1411.44,0.00014953,2]
[332729803,1721490647552,-500.0,0.00014953,2]
[332729804,1721490647561,-5389.14,0.00014953,2]
[332729805,1721490647571,-2372.21,0.00014953,2]
[332729806,1721490647581,-500.0,0.00014953,2]
[332729807,1721490647590,-3842.19,0.00014953,2]
[332729808,1721490647600,-574.86,0.00014953,2]
[332729809,1721490647610,-1798.23,0.00014953,2]
[332729810,1721490647620,-1214.62,0.00014953,2]
[332729811,1721490647629,-539.10656031,0.00014953,2]
[332729812,1721490647639,-749.13,0.00014953,2]
[332729813,1721490647649,-4527.59,0.00014953,2]
[332729814,1721490647658,-542.02,0.00014953,2]
[332729815,1721490647668,-2470.16,0.00014953,2]
[332729816,1721490647678,-4624.65,0.00014953,2]
[332729817,1721490647687,-500.0,0.00014962,2]
[332729818,1721490647697,-500.0,0.00014962,2]
[332729819,1721490647707,-500.0,0.00014962,2]
[332729820,1721490647716,-500.0,0.00014962,2]
[332729821,1721490647725,-500.0,0.00014962,2]
[332729822,1721490647735,-289.40371987,0.00014962,2]
[332729823,1721490647745,-562.4,0.00014962,2]
[332729824,1721490647754,-500.0,0.00014962,2]
[332729825,1721490647764,-500.0,0.00014962,2]
[332729826,1721490647773,-2418.71,0.00014962,2]
[332729827,1721490647783,-749.26,0.00014962,2]
[332729828,1721490647795,-500.0,0.00014962,2]
[332729829,1721490647805,-500.0,0.00014962,2]
[332729830,1721490647815,-1398.75,0.00014962,2]
[332729831,1721490647825,-500.0,0.00014962,2]
[332729832,1721490647835,-500.0,0.00014962,2]
[332729833,1721490647846,-593.92,0.00014962,2]
[332729834,1721490647856,-986.72,0.00014962,2]
[332729835,1721490647866,-500.0,0.00014962,2]
[332729836,1721490647878,-500.0,0.00014962,2]
[332729837,1721490647888,-500.0,0.00014962,2]
[332729838,1721490647897,-500.0,0.00014962,2]
[332729839,1721490647907,-500.0,0.00014962,2]
[332729840,1721490647917,-500.0,0.00014962,2]
[332729841,1721490647927,-641.37526896,0.00014962,2]
[332729842,1721490647937,-500.0,0.00014962,2]
[332729843,1721490647948,-500.0,0.00014962,2]
[332729844,1721490647958,-508.33268368,0.00014962,2]
[332729845,1721490647967,-500.0,0.00014962,2]
[332729846,1721490647977,-930.06,0.00014962,2]
[332729847,1721490647986,-500.0,0.00014962,2]
[332729848,1721490647996,-500.0,0.00014962,2]
[332729849,1721490648005,-500.0,0.00014962,2]
[332729850,1721490648015,-500.0,0.00014962,2]
[332729851,1721490648025,-500.0,0.00014962,2]
[332729852,1721490648035,-652.64,0.00014962,2]
[332729853,1721490648046,-1262.53,0.00014962,2]
[332729854,1721490648055,-500.0,0.00014962,2]
[332729855,1721490648064,-500.0,0.00014962,2]
[332729856,1721490648074,-1045.3,0.00014962,2]
[332729857,1721490648084,-500.0,0.00014962,2]
[332729858,1721490648094,-500.0,0.00014962,2]
[332729859,1721490648103,-2580.08,0.00014962,2]
[332729860,1721490648113,-500.0,0.00014962,2]
[332729861,1721490648126,-500.0,0.00014962,2]
[332729862,1721490648137,-500.0,0.00014962,2]
[332729863,1721490648148,-518.24520718,0.00014962,2]
[332729864,1721490648158,-515.92719608,0.00014962,2]
[332729865,1721490648169,-2783.24,0.00014962,2]
[332729866,1721490648179,-500.0,0.00014962,2]
[332729867,1721490648190,-500.0,0.00014962,2]
[332729868,1721490648202,-500.0,0.00014962,2]
[332729869,1721490648213,-500.0,0.00014962,2]
[332729870,1721490648223,-508.54564734,0.00014962,2]
[332729871,1721490648233,-500.0,0.00014962,2]
[332729872,1721490648245,-961.14,0.00014962,2]
[332729873,1721490648256,-193.33998903,0.00014962,2]
[332729874,1721490648267,-500.0,0.00014962,2]
[332729875,1721490648278,-500.0,0.00014962,2]
[332729876,1721490648291,-500.0,0.00014962,2]
[332729877,1721490648302,-500.0,0.00014962,2]
[332729878,1721490648312,-819.99,0.00014962,2]
[332729879,1721490648324,-626.67,0.00014962,2]
[332729880,1721490648335,-644.68,0.00014962,2]
[332729881,1721490648345,-500.0,0.00014962,2]
[332729882,1721490648357,-488.59552143,0.00014962,2]
[332729883,1721490648367,-500.0,0.00014962,2]
[332729884,1721490648379,-500.0,0.00014962,2]
[332729885,1721490648390,-500.0,0.00014962,2]
[332729886,1721490648401,-524.75018145,0.00014962,2]
[332729887,1721490648412,-500.0,0.00014962,2]
[332729888,1721490648422,-736.56,0.00014962,2]
[332729889,1721490648432,-575.77,0.00014962,2]
[332729890,1721490648443,-500.0,0.00014962,2]
[332729891,1721490648453,-500.0,0.00014962,2]
[332729892,1721490648462,-1127.84,0.00014962,2]
[332729893,1721490648472,-500.0,0.00014962,2]
[332729894,1721490648482,-500.0,0.00014962,2]
[332729895,1721490648491,-1989.55,0.00014962,2]
[332729896,1721490648502,-500.0,0.00014962,2]
[332729897,1721490648512,-500.0,0.00014962,2]
[332729898,1721490648521,-500.0,0.00014962,2]
[332729899,1721490648532,-500.0,0.00014962,2]
[332729900,1721490648541,-643.83,0.00014962,2]
[332729901,1721490648552,-857.46,0.00014962,2]
[332729902,1721490648562,-500.0,0.00014962,2]
[332729903,1721490648573,-511.32174449,0.00014962,2]
[332729904,1721490648583,-500.0,0.00014962,2]
[332729905,1721490648594,-2060.39,0.00014962,2]
[332729906,1721490648604,-177.09484028,0.00014962,2]
[332729907,1721490648616,-1035.25,0.00014962,2]
[332729908,1721490648627,-500.0,0.00014962,2]
[332729909,1721490648637,-500.0,0.00014962,2]
[332729910,1721490648648,-500.0,0.00014962,2]
[332729911,1721490648658,-500.0,0.00014962,2]
[332729912,1721490648668,-500.0,0.00014962,2]
[332729913,1721490648680,-976.92,0.00014962,2]
[332729914,1721490648690,-512.08117975,0.00014962,2]
[332729915,1721490648701,-500.0,0.00014962,2]
[332729916,1721490648711,-894.49,0.00014962,2]
[332729917,1721490648721,-734.81,0.00014962,2]
[332729918,1721490648733,-500.0,0.00014962,2]
[332729919,1721490648743,-500.0,0.00014962,2]
[332729920,1721490648755,-500.0,0.00014962,2]
[332729921,1721490648765,-1395.86,0.00014962,2]
[332729922,1721490648775,-500.0,0.00014962,2]
[332729923,1721490648785,-1725.49,0.00014962,2]
[332729924,1721490648798,-500.0,0.00014962,2]
[332729925,1721490648808,-10196.05,0.00014962,2]
[332729926,1721490648819,-814.58,0.00014962,2]
[332729927,1721490648829,-856.67,0.00014962,2]
[332729928,1721490648839,-500.0,0.00014962,2]
[332729929,1721490648848,-500.0,0.00014962,2]
[332729930,1721490648860,-500.0,0.00014962,2]
[332729931,1721490648871,-503.50562691,0.00014962,2]
[332729932,1721490648881,-1401.78,0.00014962,2]
[332729933,1721490648892,-2560.67,0.00014962,2]
[332729934,1721490648902,-500.0,0.00014962,2]
[332729935,1721490648912,-500.0,0.00014962,2]
[332729936,1721490648922,-6101.97,0.00014962,2]
[332729937,1721490648932,-500.0,0.00014962,2]
[332729938,1721490648944,-500.0,0.00014962,2]
[332729939,1721490648955,-1118.85,0.00014962,2]
[332729940,1721490648966,-500.0,0.00014962,2]
[332729941,1721490648977,-500.0,0.00014962,2]
[332729942,1721490648988,-500.0,0.00014962,2]
[332729943,1721490648999,-500.0,0.00014962,2]
[332729944,1721490649011,-500.0,0.00014962,2]
[332729945,1721490649022,-593.62,0.00014962,2]
[332729946,1721490649033,-500.0,0.00014962,2]
[332729947,1721490649046,-500.0,0.00014962,2]
[332729948,1721490649058,-500.0,0.00014962,2]
[332729949,1721490649069,-173.75511392,0.00014962,2]
[332729950,1721490649079,-500.0,0.00014962,2]
[332729951,1721490649091,-500.0,0.00014962,2]
[332729952,1721490649101,-500.0,0.00014962,2]
[332729953,1721490649112,-502.95,0.00014962,2]
[332729954,1721490649122,-400.0,0.00014962,2]
[332729955,1721490649134,-500.0,0.00014962,2]
[332729956,1721490649145,-500.0,0.00014962,2]
[332729957,1721490649156,-689.34,0.00014962,2]
[332729958,1721490649166,-520.9477985,0.00014962,2]
[332729959,1721490649177,-500.0,0.00014962,2]
[332729960,1721490649187,-563.96,0.00014962,2]
[332729961,1721490649197,-1967.52,0.00014963,2]
[332729962,1721490649208,-1764.57,0.00014963,2]
[332729963,1721490649219,-3086.74,0.00014963,2]
[332729964,1721490649230,-1172.02,0.00014963,2]
[332729965,1721490649241,-1972.47,0.00014963,2]
[332729966,1721490649252,-847.4,0.00014963,2]
[332729967,1721490649262,-500.0,0.00014963,2]
[332729968,1721490649273,-521.45625736,0.00014963,2]
[332729969,1721490649283,-1458.47,0.00014963,2]
[332729970,1721490649293,-1921.59,0.00014963,2]
[332729971,1721490649303,-335.80325809,0.00014963,2]
[332729972,1721490649314,-500.0,0.00014963,2]
[332729973,1721490649325,-500.0,0.00014963,2]
[332729974,1721490649335,-652.54,0.00014963,2]
[332729975,1721490649346,-539.75121852,0.00014963,2]
[332729976,1721490649356,-530.16,0.00014963,2]
[332729977,1721490649366,-500.0,0.00014963,2]
[332729978,1721490649377,-500.0,0.00014963,2]
[332729979,1721490649387,-679.13,0.00014963,2]
[332729980,1721490649398,-3056.03,0.00014963,2]
[332729981,1721490649409,-500.0,0.00014963,2]
[332729982,1721490649419,-500.0,0.00014963,2]
[332729983,1721490649430,-500.0,0.00014963,2]
[332729984,1721490649440,-1343.29,0.00014963,2]
[332729985,1721490649451,-12025.36,0.00014963,2]
[332729986,1721490649463,-500.0,0.00014963,2]
[332729987,1721490649474,-1011.12,0.00014963,2]
[332729988,1721490649485,-1808.36,0.00014963,2]
[332729989,1721490649496,-408.62137003,0.00015,2]
[332729990,1721490649507,-21284.05194699,0.00015,2]
[332729991,1721490649518,-1107.54053113,0.00015,2]
[332729992,1721490649529,-2843.70100215,0.00015,2]
[332729993,1721490649539,-2426.31493042,0.00015,2]
[332729994,1721490649550,-497.68661418,0.00015,2]
[332729995,1721490649561,-1616.38,0.00015011,2]
[332729996,1721490649571,-3704.58,0.00015011,2]
[332729997,1721490649582,-586.07,0.00015011,2]
[332729998,1721490649592,-16708.65,0.00015011,2]
[332729999,1721490649602,-44570.67,0.00015011,2]
[332730000,1721490649613,-512.27304389,0.00015074,2]
[332730001,1721490649624,-502.09315046,0.00015074,2]
[332730002,1721490649635,-500.0,0.00015074,2]
[332730003,1721490649646,-274.77327132,0.00015074,2]
[332730004,1721490649657,-511.21,0.00015074,2]
[332730005,1721490649876,-502.03335675,0.00015074,2]
[332730006,1721490649887,-855.71,0.00015074,2]
[332730007,1721490649897,-538.07,0.00015074,2]
[332730008,1721490649907,-500.0,0.00015074,2]
[332730009,1721490649916,-1331.09,0.00015074,2]
[332730010,1721490649925,-519.12,0.00015074,2]
[332730011,1721490649934,-594.22,0.00015074,2]
[332730012,1721490649944,-500.0,0.00015074,2]
[332730013,1721490649954,-3473.23,0.00015074,2]
[332730014,1721490649964,-914.37,0.00015074,2]
[332730015,1721490649974,-1047.43,0.00015074,2]
[332730016,1721490649983,-500.0,0.00015074,2]
[332730017,1721490649994,-1163.86,0.00015074,2]
[332730018,1721490650003,-914.49,0.00015074,2]
[332730019,1721490650013,-500.0,0.00015074,2]
[332730020,1721490650023,-500.0,0.00015074,2]
[332730021,1721490650032,-4278.72,0.00015074,2]